bitfinex/quotes_SOLUSD_20240713
["timestamp","ask_amount","ask_price","bid_price","bid_amount"]
[1720912203765,15.6895,142.82,142.79,68.11]
[1720912205295,15.6895,142.82,142.8,20.0]
[1720912205481,15.6895,142.82,142.81,45.0]
[1720912206288,21.4277,142.88,142.81,45.0]
[1720912207678,0.5,142.87,142.81,45.0]
[1720912207893,21.4277,142.88,142.81,45.0]
[1720912208094,21.4277,142.88,142.81,68.11]
[1720912208303,21.4277,142.88,142.83,23.11]
[1720912208593,21.4277,142.88,142.84,45.0]
[1720912209693,0.5,142.87,142.84,45.0]
[1720912210207,21.4277,142.88,142.84,45.0]
[1720912211203,0.5,142.87,142.81,23.11]
[1720912211402,0.5,142.87,142.79,23.11]
[1720912214083,0.5,142.87,142.77,23.11]
[1720912214288,23.11,142.92,142.76,7.26548019]
[1720912214289,21.9277,142.86,142.76,7.26548019]
[1720912215019,21.4277,142.85,142.76,7.26548019]
[1720912215184,0.5,142.84,142.78,23.11]
[1720912216096,0.5,142.84,142.79,45.0]
[1720912222818,0.5,142.84,142.81,11.56]
[1720912223693,21.4277,142.85,142.83,11.56]
[1720912224209,21.4277,142.85,142.84,11.56]
[1720912224584,21.4277,142.85,142.82,1.15367163]
[1720912224904,21.4277,142.85,142.81,24.25367163]
[1720912226299,21.4277,142.85,142.81,1.15367163]
[1720912226500,0.5,142.84,142.79,68.1]
[1720912227198,21.4277,142.85,142.79,68.1]
[1720912227391,0.5,142.84,142.79,68.1]
[1720912230396,21.4277,142.85,142.79,68.1]
[1720912231917,21.4277,142.85,142.81,23.1]
[1720912232135,21.4277,142.85,142.82,45.0]
[1720912232494,0.5,142.9,142.84,23.1]
[1720912232710,0.5,142.9,142.86,23.1]
[1720912232920,22.2292,142.98,142.89,33.1]
[1720912233102,22.2292,142.98,142.92,10.0]
[1720912233412,22.2292,142.98,142.96,23.1]
[1720912235997,22.2292,142.98,142.97,1.39876943]
[1720912236501,22.2292,142.98,142.96,23.1]
[1720912239219,0.5,142.97,142.9,10.99345841]
[1720912239420,22.2292,142.98,142.91,23.47923872]
[1720912239608,22.2292,142.98,142.93,23.1]
[1720912239810,22.2292,142.98,142.94,1.39902927]
[1720912240197,22.2292,142.98,142.93,23.1]
[1720912240622,22.2292,142.98,142.95,23.1]
[1720912242423,22.2292,142.98,142.96,45.0]
[1720912242806,6.2497,142.98,142.97,23.1]
[1720912243409,6.2497,142.98,142.97,68.1]
[1720912243724,0.2,142.99,142.97,68.1]
[1720912244024,0.2,142.99,142.98,46.39846728]
[1720912244526,6.0947,143.03,142.98,46.39846728]
[1720912244704,6.0947,143.03,142.99,1.39830682]
[1720912244904,6.0947,143.03,143.01,23.1]
[1720912248528,6.5947,143.03,143.01,23.1]
[1720912248732,0.8356907,143.05,142.99,23.1]
[1720912248935,1.3356907,143.05,143.01,23.1]
[1720912256333,0.8356907,143.05,143.01,23.1]
[1720912256543,0.8356907,143.05,143.03,23.1]
[1720912257754,0.5,143.13,143.04,1.39522764]
[1720912257929,0.5,143.13,143.11,23.1]
[1720912258139,22.4126,143.14,143.11,23.1]
[1720912261121,6.0947,143.14,143.11,23.1]
[1720912261329,7.5263907,143.19,143.13,23.1]
[1720912261629,7.5263907,143.19,143.17,23.1]
[1720912262524,1.0356907,143.19,143.18,1.39678742]
[1720912262742,1.0356907,143.19,143.17,23.1]
[1720912263242,1.0356907,143.19,143.18,1.39666461]
[1720912263428,1.0356907,143.19,143.17,23.1]
[1720912263942,1.0356907,143.19,143.14,45.0]
[1720912264145,1.0356907,143.19,143.18,23.1]
[1720912264632,1.0356907,143.19,143.18,68.1]
[1720912265155,15.3416,143.26,143.18,78.1]
[1720912265335,15.3416,143.26,143.25,23.1]
[1720912265834,6.4907,143.27,143.25,23.1]
[1720912266526,0.2,143.29,143.26,45.0]
[1720912267239,0.2,143.29,143.25,23.1]
[1720912267651,0.2,143.29,143.26,45.0]
[1720912267842,0.7,143.29,143.26,45.0]
[1720912268043,0.7,143.29,143.25,23.1]
[1720912268044,0.7,143.29,143.19,10.38245841]
[1720912268255,0.7,143.29,143.22,23.1]
[1720912269323,0.7,143.29,143.16,19.96882795]
[1720912269529,0.7,143.29,143.21,23.1]
[1720912269956,0.7,143.29,143.23,23.1]
[1720912270657,0.7,143.29,143.21,23.1]
[1720912271236,7.679,143.29,143.21,23.1]
[1720912271436,0.7,143.29,143.21,23.1]
[1720912271851,0.7,143.29,143.23,23.1]
[1720912272662,0.7,143.29,143.19,16.4049]
[1720912272854,0.2,143.29,143.28,23.1]
[1720912274635,0.7,143.29,143.24,25.83]
[1720912275029,0.7,143.29,143.21,25.83]
[1720912275450,0.2,143.29,143.21,35.83]
[1720912275637,0.2,143.29,143.24,25.83]
[1720912275845,0.2,143.29,143.25,0.51435256]
[1720912276055,0.2,143.29,143.26,1.39564911]
[1720912277165,0.2,143.29,143.25,45.0]
[1720912277351,0.2,143.29,143.27,25.83]
[1720912277635,0.2,143.29,143.28,46.39360922]
[1720912277837,0.2,143.29,143.25,25.83]
[1720912278270,0.2,143.29,143.22,25.83]
[1720912278566,0.2,143.29,143.23,10.0]
[1720912278864,0.2,143.29,143.25,25.83]
[1720912279061,0.2,143.29,143.21,9.58636954]
[1720912279062,0.2,143.29,143.28,25.83]
[1720912279363,0.2,143.29,143.27,1.39538094]
[1720912279536,0.2,143.29,143.26,45.0]
[1720912280339,0.2,143.29,143.27,1.39552298]
[1720912280645,0.2,143.29,143.26,45.0]
[1720912280840,0.2,143.29,143.25,25.83]
[1720912281859,0.2,143.29,143.25,35.83]
[1720912282067,0.2,143.29,143.26,45.0]
[1720912283670,0.2,143.29,143.25,25.83]
[1720912284474,0.2,143.29,143.24,25.83]
[1720912285363,0.2,143.29,143.21,35.41636954]
[1720912285543,0.7,143.29,143.21,35.41636954]
[1720912285748,0.2,143.29,143.21,35.41636954]
[1720912286769,0.2,143.29,143.22,1.39602338]
[1720912287352,0.2,143.29,143.21,35.41636954]
[1720912287545,0.2,143.29,143.22,1.39602586]
[1720912287750,0.2,143.29,143.22,7.81279]
[1720912288176,0.2,143.29,143.23,45.0]
[1720912288475,0.2,143.29,143.24,25.83]
[1720912288682,0.2,143.29,143.25,45.0]
[1720912288853,0.2,143.29,143.24,25.83]
[1720912289053,0.2,143.29,143.25,46.39593011]
[1720912289354,0.2,143.29,143.25,45.0]
[1720912289575,0.2,143.29,143.24,25.83]
[1720912289576,21.7379,143.28,143.22,7.81279]
[1720912290279,21.7379,143.28,143.23,1.3960151]
[1720912290570,0.2,143.29,143.24,35.83]
[1720912290783,0.2,143.29,143.25,20.0]
[1720912290946,0.2,143.29,143.26,45.0]
[1720912291150,0.2,143.29,143.25,45.0]
[1720912291676,0.2,143.29,143.22,33.64279]
[1720912291677,6.3965,143.29,143.22,33.64279]
[1720912291852,0.5,143.28,143.22,33.64279]
[1720912293459,0.5,143.28,143.22,7.81279]
[1720912294071,0.5,143.28,143.2,10.38245841]
[1720912294687,0.5,143.28,143.19,41.3714]
[1720912294989,0.5,143.28,143.19,25.83]
[1720912295486,0.5,143.28,143.19,45.79882795]
[1720912296190,6.1965,143.26,143.19,9.58636954]
[1720912296490,0.5,143.25,143.15,45.79882795]
[1720912296655,0.5,143.25,143.18,22.99]
[1720912297384,0.5,143.25,143.18,9.58636954]
[1720912297679,0.5,143.25,143.2,22.99]
[1720912297888,6.6965,143.26,143.21,45.0]
[1720912298087,6.6965,143.26,143.2,22.99]
[1720912301052,6.6965,143.26,143.18,32.57636954]
[1720912301587,6.6965,143.26,143.18,22.99]
[1720912303983,6.5249,143.24,143.15,15.5414]
[1720912304183,0.5,143.23,143.15,38.5314]
[1720912304786,0.5,143.23,143.17,22.99]
[1720912305382,0.5,143.23,143.18,45.0]
[1720912305608,6.5249,143.24,143.19,22.99]
[1720912305909,6.5249,143.24,143.2,45.0]
[1720912306483,6.5249,143.24,143.21,22.99]
[1720912307484,6.5249,143.24,143.21,24.38625564]
[1720912308564,7.0249,143.24,143.21,22.99]
[1720912308760,0.5,143.23,143.19,22.99]
[1720912308992,0.5,143.23,143.12,14.53589285]
[1720912309188,0.5,143.23,143.16,22.99]
[1720912310190,22.3183,143.22,143.16,22.99]
[1720912310391,0.5,143.21,143.16,22.99]
[1720912310578,0.5,143.2,143.16,22.99]
[1720912311602,0.5,143.21,143.16,22.99]
[1720912312281,22.3183,143.22,143.16,22.99]
[1720912312486,22.3183,143.22,143.17,45.0]
[1720912312998,0.5,143.21,143.16,22.99]
[1720912313984,22.3183,143.22,143.16,22.99]
[1720912314289,22.3183,143.22,143.18,22.99]
[1720912314891,0.5,143.21,143.11,52.74342795]
[1720912315190,0.5,143.21,143.13,22.99]
[1720912315694,0.5,143.21,143.11,22.99]
[1720912315989,6.5249,143.2,143.11,22.99]
[1720912316292,0.5,143.19,143.12,1.39711027]
[1720912316475,0.5,143.19,143.13,22.99]
[1720912317567,0.5,143.19,143.08,40.62201127]
[1720912317568,0.5,143.19,143.11,22.99]
[1720912318276,15.7749,143.18,143.11,22.99]
[1720912318596,6.3373,143.16,143.11,22.99]
[1720912318773,0.5,143.15,143.11,22.99]
[1720912318970,0.5,143.15,143.08,15.7749]
[1720912319309,0.5,143.15,143.09,22.99]
[1720912319483,22.1122,143.13,143.07,15.7749]
[1720912319683,0.5,143.12,143.06,22.99]
[1720912319871,0.5,143.12,143.06,24.3877067]
[1720912320178,0.5,143.12,143.06,22.99]
[1720912320382,22.1122,143.13,143.08,22.99]
[1720912320897,0.5,143.12,143.06,22.99]
[1720912321115,0.5,143.12,143.04,22.99]
[1720912321270,22.1122,143.13,143.09,22.99]
[1720912321791,0.5,143.12,143.09,22.99]
[1720912321979,22.1122,143.13,143.09,22.99]
[1720912323899,22.1122,143.13,143.11,22.99]
[1720912324097,15.7749,143.17,143.12,45.0]
[1720912324275,15.7749,143.17,143.13,22.99]
[1720912325179,15.7749,143.17,143.15,22.99]
[1720912325494,6.3373,143.19,143.15,22.99]
[1720912326587,6.3373,143.19,143.13,25.87]
[1720912326781,6.3373,143.19,143.14,45.0]
[1720912327981,0.5,143.18,143.13,25.87]
[1720912328500,6.3373,143.19,143.16,25.87]
[1720912330182,0.5,143.21,143.16,25.87]
[1720912330382,6.3373,143.25,143.17,45.0]
[1720912330383,0.5,143.24,143.17,45.0]
[1720912330602,0.5,143.23,143.17,45.0]
[1720912334978,0.5,143.24,143.17,45.0]
[1720912335599,0.5,143.23,143.17,45.0]
[1720912336004,0.5,143.23,143.13,25.87]
[1720912336200,0.5,143.23,143.14,45.0]
[1720912336912,0.5,143.23,143.16,25.87]
[1720912337077,0.5,143.23,143.17,45.0]
[1720912337495,0.5,143.24,143.17,45.0]
[1720912339708,6.3373,143.25,143.18,1.39657444]
[1720912339997,6.3373,143.25,143.19,25.87]
[1720912340203,6.3373,143.25,143.2,45.0]
[1720912340394,6.3373,143.25,143.21,1.39625158]
[1720912340798,0.2,143.29,143.22,25.87]
[1720912341103,0.2,143.29,143.23,46.39601692]
[1720912341321,0.2,143.29,143.24,1.39601696]
[1720912341513,0.2,143.29,143.23,45.0]
[1720912342590,0.2,143.29,143.25,10.0]
[1720912342798,0.8356907,143.33,143.28,25.87]
[1720912343096,0.8356907,143.33,143.25,25.87]
[1720912343309,0.8356907,143.33,143.26,45.0]
[1720912343619,0.8356907,143.33,143.27,45.0]
[1720912343783,0.8356907,143.33,143.25,35.87]
[1720912343784,0.8356907,143.33,143.26,45.0]
[1720912344203,0.8356907,143.33,143.27,1.3954304]
[1720912344398,0.8356907,143.33,143.28,25.87]
[1720912344760,0.8356907,143.33,143.26,45.0]
[1720912345080,23.2358,143.32,143.22,25.87]
[1720912345808,6.3944,143.29,143.19,25.87]
[1720912345991,0.5,143.28,143.19,25.87]
[1720912346710,0.5,143.28,143.22,22.97]
[1720912347283,6.3944,143.29,143.24,22.97]
[1720912348084,6.3944,143.29,143.25,45.0]
[1720912348698,6.3944,143.29,143.24,45.0]
[1720912348938,0.5,143.28,143.19,25.83]
[1720912350529,0.5,143.28,143.2,45.0]
[1720912350733,6.3944,143.29,143.2,55.0]
[1720912350940,6.3944,143.29,143.22,25.83]
[1720912351117,6.3944,143.29,143.23,45.0]
[1720912352247,0.8356907,143.33,143.25,35.83]
[1720912352540,6.3944,143.32,143.26,45.0]
[1720912354307,6.3944,143.32,143.28,25.83]
[1720912354517,6.3944,143.32,143.29,45.0]
[1720912354738,0.8356907,143.33,143.29,45.0]
[1720912355144,0.8356907,143.33,143.29,55.0]
[1720912355636,0.8356907,143.33,143.31,25.83]
[1720912355822,0.8356907,143.33,143.32,45.0]
[1720912356506,0.8356907,143.33,143.28,25.83]
[1720912358239,0.8356907,143.33,143.25,25.83]
[1720912359115,0.8356907,143.33,143.25,35.83]
[1720912359621,0.8356907,143.33,143.28,25.83]
[1720912360128,0.8356907,143.33,143.29,45.0]
[1720912360315,0.8356907,143.33,143.3,1.39541305]
[1720912361325,0.8356907,143.33,143.29,55.0]
[1720912361736,0.8356907,143.33,143.29,45.0]
[1720912363039,0.8356907,143.33,143.25,25.83]
[1720912363341,0.8356907,143.33,143.26,20.0]
[1720912363566,0.8356907,143.33,143.27,1.39539089]
[1720912363944,0.8356907,143.33,143.26,55.83]
[1720912364144,0.8356907,143.33,143.29,25.83]
[1720912364479,0.8356907,143.33,143.3,45.0]
[1720912367070,0.8356907,143.33,143.27,16.3414]
[1720912367374,0.8356907,143.33,143.28,20.0]
[1720912368455,0.8356907,143.33,143.29,45.0]
[1720912368856,0.8356907,143.33,143.29,80.83]
[1720912369055,0.8356907,143.33,143.3,1.39506616]
[1720912369670,0.8356907,143.33,143.29,25.83]
[1720912369842,0.8356907,143.33,143.29,25.33]
[1720912370244,0.8356907,143.33,143.3,1.39526808]
[1720912370444,0.8356907,143.33,143.29,25.33]
[1720912370644,0.8356907,143.33,143.3,1.39526734]
[1720912370869,0.8356907,143.33,143.29,25.33]
[1720912371461,0.8356907,143.33,143.3,45.0]
[1720912372269,0.8356907,143.33,143.31,1.39508808]
[1720912372792,6.3944,143.36,143.31,31.06]
[1720912372987,6.3944,143.36,143.32,65.0]
[1720912373195,16.2611,143.36,143.32,65.0]
[1720912373374,6.3462,143.35,143.32,75.0]
[1720912373561,6.3462,143.35,143.32,65.0]
[1720912374693,6.3462,143.37,143.32,65.0]
[1720912375191,6.3462,143.37,143.32,45.0]
[1720912375488,6.3462,143.37,143.31,45.0]
[1720912375692,6.8462,143.37,143.31,45.0]
[1720912375896,6.8462,143.37,143.29,25.33]
[1720912376191,6.8462,143.37,143.3,1.39531274]
[1720912376369,6.3462,143.37,143.3,1.39531274]
[1720912376799,6.8462,143.37,143.29,25.33]
[1720912377504,6.8462,143.37,143.3,45.0]
[1720912377959,6.3462,143.37,143.31,30.0]
[1720912378164,6.3462,143.37,143.32,45.0]
[1720912378681,6.3462,143.37,143.31,45.0]
[1720912378885,6.3462,143.37,143.32,20.0]
[1720912379059,6.3462,143.37,143.33,45.0]
[1720912379463,6.8462,143.37,143.33,45.0]
[1720912379683,6.3462,143.37,143.31,1.39517378]
[1720912379893,6.3462,143.37,143.31,46.39517378]
[1720912380186,6.8462,143.37,143.31,45.0]
[1720912380576,6.8462,143.37,143.27,61.67640179]
[1720912381465,6.8462,143.37,143.27,51.67640179]
[1720912381666,6.8462,143.37,143.27,35.33500179]
[1720912382310,15.329,143.36,143.27,35.33500179]
[1720912382601,6.591,143.34,143.27,35.33500179]
[1720912382774,6.591,143.34,143.27,35.83]
[1720912382977,6.591,143.34,143.28,29.50500179]
[1720912383276,6.591,143.34,143.3,25.83]
[1720912383584,6.591,143.34,143.28,38.13968242]
[1720912384700,6.591,143.34,143.29,45.0]
[1720912385292,6.591,143.34,143.3,27.22512765]
[1720912385599,6.591,143.34,143.31,45.0]
[1720912387478,6.591,143.34,143.32,20.0]
[1720912387689,6.591,143.34,143.33,45.0]
[1720912390681,0.2699,143.39,143.33,45.0]
[1720912391007,0.2699,143.39,143.33,70.33]
[1720912392714,0.2699,143.39,143.35,22.93]
[1720912393075,0.2699,143.39,143.36,45.0]
[1720912393412,0.2699,143.39,143.31,10.0]
[1720912393704,0.2699,143.39,143.34,22.93]
[1720912394604,0.2699,143.39,143.35,45.0]
[1720912394811,0.2699,143.39,143.33,22.93]
[1720912395102,0.7699,143.39,143.33,22.93]
[1720912395312,0.7699,143.39,143.28,12.77338312]
[1720912395313,0.2699,143.39,143.36,22.93]
[1720912398278,0.7699,143.39,143.36,22.93]
[1720912398471,0.2699,143.39,143.36,22.93]
[1720912399193,0.2699,143.39,143.32,10.0]
[1720912399400,0.2699,143.39,143.38,22.93]
[1720912399617,0.2699,143.39,143.38,67.93]
[1720912399780,0.2,143.39,143.38,67.93]
[1720912399979,8.51693229,143.47,143.38,115.07164844]
[1720912400279,6.2383,143.45,143.34,10.0]
[1720912400597,6.7383,143.45,143.31,16.3293]
[1720912400790,16.509,143.44,143.33,25.79]
[1720912400994,0.5,143.43,143.33,25.79]
[1720912401302,0.5,143.43,143.34,25.79]
[1720912402104,17.009,143.44,143.34,25.79]
[1720912403491,17.009,143.44,143.34,35.79]
[1720912404118,17.009,143.44,143.35,20.0]
[1720912404421,17.009,143.44,143.37,25.79]
[1720912404784,16.509,143.44,143.37,25.79]
[1720912404999,17.009,143.44,143.37,25.79]
[1720912405194,16.509,143.44,143.37,25.79]
[1720912405401,16.509,143.44,143.4,25.79]
[1720912406295,18.78763229,143.47,143.4,35.79]
[1720912406499,18.78763229,143.47,143.43,25.79]
[1720912407180,0.8356907,143.48,143.46,25.79]
[1720912407385,0.8356907,143.48,143.47,25.79]
[1720912408387,0.2,143.49,143.47,20.0]
[1720912408588,22.7473,143.51,143.47,25.79]
[1720912408809,4.496,143.5,143.44,25.79]
[1720912409129,4.496,143.5,143.41,45.79]
[1720912409417,4.496,143.5,143.36,41.8231]
[1720912409418,22.7473,143.49,143.36,25.79]
[1720912409626,0.5,143.48,143.36,25.79]
[1720912409788,22.7473,143.49,143.43,25.79]
[1720912409988,22.7473,143.49,143.46,25.79]
[1720912410191,0.5,143.48,143.39,10.0]
[1720912410392,22.7473,143.49,143.47,25.79]
[1720912411312,3.996,143.5,143.48,1.39236864]
[1720912411917,3.996,143.5,143.47,25.79]
[1720912413514,0.5,143.49,143.47,25.79]
[1720912414010,3.996,143.5,143.47,25.79]
[1720912415097,3.996,143.5,143.48,1.39369868]
[1720912415313,16.509,143.53,143.49,25.79]
[1720912415521,0.8356907,143.62,143.48,45.0]
[1720912415522,6.2383,143.56,143.5,97.9727361]
[1720912415704,6.2383,143.56,143.54,25.79]
[1720912416538,6.7383,143.56,143.54,25.79]
[1720912416827,6.2383,143.56,143.54,25.79]
[1720912417821,6.7383,143.56,143.54,25.79]
[1720912418339,6.2383,143.56,143.54,25.79]
[1720912418631,0.2,143.59,143.54,25.79]
[1720912419509,0.2,143.59,143.57,25.79]
[1720912420251,22.0328,143.61,143.57,51.58]
[1720912420424,6.0716,143.61,143.6,25.79]
[1720912420620,0.8356907,143.62,143.6,25.79]
[1720912420824,6.0716,143.65,143.61,1.39232684]
[1720912421049,6.0716,143.65,143.64,25.79]
[1720912421638,15.9612,143.67,143.64,25.79]
[1720912422141,0.5,143.66,143.64,25.79]
[1720912422353,15.9612,143.67,143.64,25.79]
[1720912422539,0.5,143.68,143.64,25.79]
[1720912422845,0.5,143.67,143.64,25.79]
[1720912423048,0.5,143.67,143.61,25.79]
[1720912423223,0.5,143.67,143.57,25.79]
[1720912423423,6.0716,143.65,143.57,25.79]
[1720912423724,0.5,143.64,143.57,25.79]
[1720912425248,0.5,143.64,143.54,25.79]
[1720912427345,0.5,143.64,143.57,25.79]
[1720912427934,0.5,143.64,143.54,25.79]
[1720912429055,6.5716,143.65,143.6,25.79]
[1720912429242,0.5,143.64,143.6,25.79]
[1720912430042,0.5,143.64,143.57,25.79]
[1720912432155,0.5,143.64,143.54,25.79]
[1720912434559,15.9612,143.63,143.5,25.79]
[1720912434733,0.5,143.62,143.5,25.79]
[1720912434932,0.5,143.62,143.51,1.39329225]
[1720912435156,0.5,143.62,143.53,25.79]
[1720912435857,0.5,143.62,143.56,25.79]
[1720912436251,16.4612,143.63,143.59,25.79]
[1720912436445,15.9612,143.63,143.59,25.79]
[1720912437044,0.5,143.62,143.59,25.79]
[1720912437255,0.5,143.62,143.56,25.79]
[1720912439269,0.5,143.62,143.53,25.79]
[1720912439446,0.5,143.62,143.56,25.79]
[1720912441861,0.5,143.62,143.53,7.68487364]
[1720912442159,0.5,143.64,143.6,25.79]
[1720912442373,6.5716,143.65,143.6,25.79]
[1720912442546,6.0716,143.65,143.6,25.79]
[1720912442952,6.0716,143.65,143.57,25.79]
[1720912442953,15.9017,143.67,143.63,25.79]
[1720912443161,15.9017,143.67,143.64,1.39215003]
[1720912443340,6.8462,143.69,143.64,1.39215003]
[1720912443540,0.5,143.68,143.63,25.79]
[1720912443739,0.5,143.68,143.6,25.79]
[1720912443940,15.9017,143.67,143.58,7.68487364]
[1720912444156,6.6462,143.65,143.57,25.79]
[1720912444483,0.5,143.64,143.57,25.79]
[1720912445886,0.5,143.64,143.57,25.29]
[1720912447068,15.9017,143.63,143.54,25.79]
[1720912447256,0.5,143.62,143.54,25.79]
[1720912447972,6.6462,143.61,143.54,25.79]
[1720912448189,0.5,143.6,143.54,25.79]
[1720912448675,0.5,143.6,143.5,25.79]
[1720912448879,15.9017,143.59,143.5,25.79]
[1720912449087,6.6462,143.57,143.5,25.79]
[1720912449372,0.5,143.56,143.5,25.79]
[1720912454185,15.9017,143.55,143.47,25.79]
[1720912454376,0.5,143.54,143.47,25.79]
[1720912455189,6.6462,143.53,143.44,25.79]
[1720912455402,0.5,143.52,143.44,25.79]
[1720912455594,0.5,143.51,143.44,25.79]
[1720912456991,15.9017,143.5,143.44,25.79]
[1720912457295,0.5,143.49,143.44,25.79]
[1720912457469,0.5,143.48,143.41,33.0582756]
[1720912457675,6.6462,143.47,143.41,33.0582756]
[1720912457887,0.5,143.46,143.41,33.0582756]
[1720912458090,0.5,143.45,143.41,33.0582756]
[1720912459388,16.4823,143.44,143.41,7.2682756]
[1720912459573,0.5,143.43,143.36,25.79]
[1720912459773,0.5,143.42,143.36,25.79]
[1720912461092,6.1711,143.41,143.36,25.79]
[1720912461300,0.5,143.4,143.36,25.79]
[1720912461477,0.5,143.39,143.36,25.79]
[1720912461805,0.5,143.39,143.33,25.79]
[1720912462373,16.4823,143.38,143.33,25.79]
[1720912462573,0.5,143.37,143.29,25.79]
[1720912462801,6.1711,143.36,143.29,25.79]
[1720912463103,0.5,143.35,143.29,25.79]
[1720912463271,0.5,143.35,143.24,7.2613746]
[1720912463470,0.5,143.35,143.24,33.0513746]
[1720912463783,0.5,143.35,143.27,25.79]
[1720912463983,16.4823,143.34,143.24,33.0513746]
[1720912464172,0.5,143.33,143.24,33.0513746]
[1720912464367,0.5,143.32,143.24,33.0513746]
[1720912466981,6.1711,143.31,143.24,25.79]
[1720912467175,0.5,143.3,143.24,25.79]
[1720912467480,6.1711,143.31,143.15,35.79]
[1720912467481,16.4823,143.28,143.21,25.79]
[1720912467708,0.5,143.27,143.21,25.79]
[1720912467997,16.4823,143.28,143.18,25.79]
[1720912467998,6.1711,143.25,143.18,25.79]
[1720912468196,0.5,143.24,143.18,25.79]
[1720912468398,0.5,143.23,143.18,25.79]
[1720912469393,0.5,143.23,143.15,25.79]
[1720912469994,0.5,143.24,143.18,25.79]
[1720912470186,0.5,143.24,143.21,25.79]
[1720912470418,6.1711,143.25,143.21,25.79]
[1720912470632,0.5,143.24,143.21,25.79]
[1720912470992,6.6711,143.25,143.21,25.79]
[1720912471317,0.5,143.24,143.21,25.79]
[1720912472123,0.5,143.24,143.18,25.79]
[1720912475790,0.5,143.24,143.21,25.79]
[1720912475993,6.1711,143.32,143.22,45.79]
[1720912476237,6.1711,143.32,143.28,25.79]
[1720912476238,6.6711,143.32,143.28,25.79]
[1720912476401,6.1711,143.32,143.31,25.79]
[1720912476732,6.1711,143.4,143.31,25.79]
[1720912477034,0.5,143.39,143.34,25.79]
[1720912477617,6.6711,143.4,143.34,25.79]
[1720912477799,0.5,143.39,143.34,25.79]
[1720912478622,0.5,143.39,143.33,31.52]
[1720912480194,0.5,143.39,143.29,31.52]
[1720912480418,0.5,143.39,143.3,20.0]
[1720912481820,0.5,143.39,143.29,31.52]
[1720912482411,0.5,143.39,143.3,1.39552108]
[1720912482999,0.5,143.39,143.31,1.39528166]
[1720912483203,0.5,143.39,143.29,31.52]
[1720912484618,6.4791,143.37,143.22,31.52]
[1720912484943,0.5,143.36,143.22,31.52]
[1720912485101,6.4791,143.37,143.22,31.52]
[1720912485102,0.5,143.35,143.22,31.52]
[1720912486311,0.5,143.35,143.23,1.39614749]
[1720912486509,0.5,143.35,143.23,66.39614749]
[1720912487223,0.5,143.35,143.26,31.52]
[1720912488025,0.5,143.35,143.27,45.0]